bitfinex/quotes_BTCUSD_20250101
["timestamp","ask_amount","ask_price","bid_price","bid_amount"]
[1735721205875,0.15,93530.0,93528.0,0.07764733]
[1735721206099,0.57406231,93529.0,93528.0,0.07764733]
[1735721206961,0.58577008,93529.0,93528.0,0.07764733]
[1735721207166,0.57456086,93529.0,93528.0,0.07773263]
[1735721207370,0.37284386,93529.0,93528.0,0.07773263]
[1735721207790,0.57894586,93529.0,93528.0,0.07773263]
[1735721207984,0.54275686,93529.0,93528.0,0.07773263]
[1735721208216,0.52797286,93529.0,93528.0,0.07773263]
[1735721208563,0.37284386,93529.0,93528.0,0.07773263]
[1735721208928,0.56536186,93529.0,93528.0,0.07773263]
[1735721209976,0.37284386,93529.0,93528.0,0.07773263]
[1735721210185,0.59231486,93529.0,93528.0,0.07773263]
[1735721210391,0.52611486,93529.0,93528.0,0.07773263]
[1735721210612,0.50636686,93529.0,93528.0,0.07773263]
[1735721210830,0.48329786,93529.0,93528.0,0.07873263]
[1735721211023,0.48329786,93529.0,93528.0,0.07773263]
[1735721211277,0.48329786,93529.0,93528.0,0.07973263]
[1735721211505,0.48329786,93529.0,93528.0,0.08073263]
[1735721211696,0.48329786,93529.0,93528.0,0.07773263]
[1735721212122,0.48329786,93529.0,93528.0,0.08073263]
[1735721212550,0.48329786,93529.0,93528.0,0.07873263]
[1735721212878,0.48329786,93529.0,93528.0,0.07973263]
[1735721214234,0.48329786,93529.0,93528.0,0.08073263]
[1735721217515,0.48329786,93529.0,93528.0,0.0030853]
[1735721217723,0.57439345,93529.0,93528.0,0.0030853]
[1735721218327,0.48346866,93529.0,93528.0,0.0030853]
[1735721218849,0.37301466,93529.0,93528.0,0.0030853]
[1735721219259,2.36386166,93529.0,93528.0,0.0030853]
[1735721220828,0.79170066,93529.0,93528.0,0.0030853]
[1735721221041,0.37301466,93529.0,93528.0,0.0030853]
[1735721222268,0.37301466,93529.0,93528.0,0.0790853]
[1735721224737,0.71596766,93529.0,93528.0,0.0790853]
[1735721224956,0.69646766,93529.0,93528.0,0.0790853]
[1735721225140,0.56895766,93529.0,93528.0,0.0790853]
[1735721226789,0.56895766,93529.0,93528.0,0.0030853]
[1735721227009,0.66861923,93529.0,93528.0,0.0030853]
[1735721228757,0.56895766,93529.0,93528.0,0.0030853]
[1735721229170,0.56895766,93529.0,93528.0,0.0010853]
[1735721229359,0.37301466,93529.0,93528.0,0.0010853]
[1735721229564,1.59110866,93529.0,93528.0,0.0010853]
[1735721230305,1.59110866,93529.0,93528.0,3e-07]
[1735721230306,1.40654666,93529.0,93528.0,3e-07]
[1735721230517,0.363851,93523.0,93522.0,9e-07]
[1735721230916,0.37230799,93523.0,93522.0,9e-07]
[1735721232189,0.37330799,93523.0,93522.0,0.0010009]
[1735721232413,0.37230799,93523.0,93522.0,0.0010009]
[1735721233111,1.01100199,93523.0,93522.0,0.0010009]
[1735721233533,0.76614799,93523.0,93522.0,0.0010009]
[1735721234343,0.76614799,93523.0,93522.0,9e-07]
[1735721234555,0.37230799,93523.0,93522.0,9e-07]
[1735721234959,0.45237372,93523.0,93522.0,9e-07]
[1735721235228,0.45237372,93523.0,93522.0,0.0010009]
[1735721235416,0.37230799,93523.0,93522.0,9e-07]
[1735721235625,0.45110799,93523.0,93522.0,9e-07]
[1735721235847,0.363876,93512.0,93506.0,0.0001706]
[1735721236295,0.37231046,93512.0,93506.0,0.0001706]
[1735721238108,1.60071246,93512.0,93506.0,0.0001706]
[1735721238837,1.60071246,93512.0,93511.0,0.85125589]
[1735721239523,1.70469878,93512.0,93511.0,0.85125589]
[1735721240135,0.47729678,93512.0,93511.0,0.85125589]
[1735721240336,0.37331046,93512.0,93511.0,0.85125589]
[1735721240580,0.00943446,93512.0,93511.0,0.85125589]
[1735721241589,2.87944646,93512.0,93511.0,0.85125589]
[1735721241786,2.18062246,93512.0,93511.0,0.85134109]
[1735721242880,2.24967946,93512.0,93511.0,0.85134109]
[1735721243525,1.74648046,93512.0,93511.0,0.85134109]
[1735721246190,1.28282446,93512.0,93511.0,0.85134109]
[1735721246597,1.38681078,93512.0,93511.0,0.85134109]
[1735721246812,1.38681078,93512.0,93511.0,0.78717709]
[1735721247692,1.38681078,93512.0,93511.0,0.78417709]
[1735721247902,1.28182446,93512.0,93511.0,0.78517709]
[1735721250331,1.13182446,93512.0,93511.0,0.91087709]
[1735721250536,0.22231046,93512.0,93511.0,1.11486341]
[1735721251420,0.22231046,93512.0,93511.0,1.11386341]
[1735721251635,0.22231046,93512.0,93511.0,1.11586341]
[1735721252074,0.22231046,93512.0,93511.0,1.11386341]
[1735721252288,0.22331046,93512.0,93511.0,1.11386341]
[1735721252714,0.22231046,93512.0,93511.0,1.11386341]
[1735721252923,0.22331046,93512.0,93511.0,1.11386341]
[1735721253668,0.22331046,93512.0,93511.0,1.11786341]
[1735721254094,0.22331046,93512.0,93511.0,1.11386341]
[1735721254446,0.22231046,93512.0,93511.0,1.11786341]
[1735721255102,0.22231046,93512.0,93511.0,1.11986341]
[1735721255308,0.22331046,93512.0,93511.0,1.11586341]
[1735721255520,0.22231046,93512.0,93511.0,1.11386341]
[1735721255725,0.22348106,93512.0,93511.0,1.11586341]
[1735721256147,0.22248106,93512.0,93511.0,1.11386341]
[1735721256357,0.22348106,93512.0,93511.0,1.11586341]
[1735721256564,0.22348106,93512.0,93511.0,1.11986341]
[1735721257011,0.22348106,93512.0,93511.0,1.11586341]
[1735721257431,0.22348106,93512.0,93511.0,1.11986341]
[1735721257572,0.22248106,93512.0,93511.0,1.11786341]
[1735721258011,0.22348106,93512.0,93511.0,1.11886341]
[1735721258248,0.22248106,93512.0,93511.0,1.11786341]
[1735721258648,0.22348106,93512.0,93511.0,1.11886341]
[1735721263760,0.22348106,93512.0,93511.0,1.11486341]
[1735721264082,0.22348106,93512.0,93511.0,1.11786341]
[1735721264434,0.22248106,93512.0,93511.0,1.11686341]
[1735721264767,0.22348106,93512.0,93511.0,1.11786341]
[1735721264970,0.22248106,93512.0,93511.0,1.11686341]
[1735721265388,0.22348106,93512.0,93511.0,1.11786341]
[1735721265815,0.22348106,93512.0,93511.0,1.11486341]
[1735721266144,0.22348106,93512.0,93511.0,1.11786341]
[1735721266670,0.22348106,93512.0,93511.0,1.11486341]
[1735721267087,0.17348106,93512.0,93511.0,1.11786341]
[1735721267423,0.18048338,93512.0,93511.0,1.11786341]
[1735721268712,0.17948338,93512.0,93511.0,1.11686341]
[1735721268943,0.17948338,93512.0,93511.0,1.11386341]
[1735721269189,0.00817292,93512.0,93511.0,1.22184973]
[1735721269651,0.0011706,93512.0,93511.0,1.22184973]
[1735721270096,0.0011706,93512.0,93511.0,1.21884973]
[1735721270402,0.0011706,93512.0,93511.0,1.22184973]
[1735721270978,0.0011706,93512.0,93511.0,1.21784973]
[1735721270979,0.0001706,93512.0,93511.0,1.21784973]
[1735721271191,0.0001706,93512.0,93511.0,1.11386341]
[1735721271436,0.0011706,93512.0,93511.0,1.11986341]
[1735721271693,0.0001706,93512.0,93511.0,1.11386341]
[1735721271952,0.0011706,93512.0,93511.0,1.1914856]
[1735721272153,0.0011706,93512.0,93511.0,1.1904856]
[1735721272154,0.0021706,93512.0,93511.0,1.1904856]
[1735721272653,0.0031706,93512.0,93511.0,1.1964856]
[1735721272891,0.0021706,93512.0,93511.0,1.1904856]
[1735721273145,0.0011706,93512.0,93511.0,1.1854856]
[1735721273471,0.0011706,93512.0,93511.0,1.2904856]
[1735721273930,0.0011706,93512.0,93511.0,1.2854856]
[1735721274194,0.0021706,93512.0,93511.0,1.2934856]
[1735721274403,0.0021706,93512.0,93511.0,1.3024856]
[1735721274404,0.0031706,93512.0,93511.0,1.3024856]
[1735721274577,0.0011706,93512.0,93511.0,1.2934856]
[1735721274812,0.0021706,93512.0,93511.0,1.3024856]
[1735721275475,0.0011706,93512.0,93511.0,1.2944856]
[1735721275654,0.0021706,93512.0,93511.0,1.3034856]
[1735721277060,0.0021706,93512.0,93511.0,1.15486341]
[1735721278169,0.0011706,93512.0,93511.0,1.14586341]
[1735721278391,0.0011706,93512.0,93511.0,1.15486341]
[1735721278570,0.0021706,93512.0,93511.0,1.15486341]
[1735721279145,0.0011706,93512.0,93511.0,1.14586341]
[1735721279357,0.0021706,93512.0,93511.0,1.15486341]
[1735721281249,0.0021706,93512.0,93511.0,1.17417559]
[1735721282607,0.0021706,93512.0,93511.0,1.21702259]
[1735721283948,0.0021706,93512.0,93511.0,1.19771041]
[1735721287016,0.0021706,93512.0,93511.0,1.29771041]
[1735721287915,0.0021706,93512.0,93511.0,1.41061041]
[1735721288121,0.0021706,93512.0,93511.0,1.51061041]
[1735721288785,0.00066935,93529.0,93521.0,0.413855]
[1735721288993,0.00066935,93529.0,93521.0,0.74803272]
[1735721289819,0.00066935,93529.0,93521.0,0.76549185]
[1735721290221,0.00066935,93529.0,93521.0,0.74803272]
[1735721291633,0.0011704,93522.0,93521.0,0.75703272]
[1735721291849,0.0001704,93522.0,93521.0,0.75703272]
[1735721292063,0.0001704,93522.0,93521.0,0.74803272]
[1735721292290,0.0001704,93522.0,93521.0,0.75703272]
[1735721292542,0.00066935,93529.0,93528.0,0.748939]
[1735721292769,0.00066935,93529.0,93528.0,0.97991164]
[1735721293212,0.00066935,93529.0,93528.0,0.99737077]
[1735721293664,0.00066935,93529.0,93528.0,0.97991164]
[1735721294294,0.00066935,93529.0,93528.0,0.99737077]
[1735721294506,0.00066935,93529.0,93528.0,1.00637077]
[1735721294717,0.00066935,93529.0,93528.0,0.98891164]
[1735721294916,0.00166935,93529.0,93528.0,0.98891164]
[1735721295126,0.00166935,93529.0,93528.0,0.99791164]
[1735721295332,0.00066935,93529.0,93528.0,0.98891164]
[1735721295540,0.00066935,93529.0,93528.0,0.97991164]
[1735721295745,0.00166935,93529.0,93528.0,0.99791164]
[1735721296193,0.00166935,93529.0,93528.0,1.01537077]
[1735721300065,0.15,93569.0,93568.0,0.1]
[1735721300327,0.15009064,93569.0,93568.0,0.20398632]
[1735721300525,0.15723869,93569.0,93568.0,0.20398632]
[1735721300763,0.15723869,93569.0,93568.0,0.22438495]
[1735721301323,0.00723869,93569.0,93568.0,0.22438495]
[1735721301522,9.064e-05,93569.0,93568.0,0.20398632]
[1735721301724,9.064e-05,93569.0,93568.0,0.21698632]
[1735721301974,9.064e-05,93569.0,93568.0,0.23998632]
[1735721303336,0.00026104,93569.0,93568.0,0.23998632]
[1735721304470,0.00740949,93569.0,93568.0,0.23998632]
[1735721304675,0.00026104,93569.0,93568.0,0.23998632]
[1735721304954,0.00740949,93569.0,93568.0,0.26398495]
[1735721305160,0.00026104,93569.0,93568.0,0.26398495]
[1735721305708,0.00744373,93569.0,93568.0,0.26398495]
[1735721305913,0.00026104,93569.0,93568.0,0.23998632]
[1735721306115,0.00744373,93569.0,93568.0,0.23998632]
[1735721306324,0.00026104,93569.0,93568.0,0.21698632]
[1735721307561,0.00026104,93569.0,93568.0,0.23998632]
[1735721310192,0.00026104,93569.0,93568.0,0.23598632]
[1735721310423,0.00026104,93569.0,93568.0,0.32424555]
[1735721310651,0.00026104,93569.0,93568.0,0.31524555]
[1735721310875,0.213716,93582.0,93569.0,0.236746]
[1735721311104,0.0784,93585.0,93584.0,0.1]
[1735721311347,0.0784,93585.0,93584.0,0.20398632]
[1735721313047,0.0784,93585.0,93584.0,0.22438495]
[1735721313467,0.0784,93585.0,93584.0,0.23038495]
[1735721313886,0.0784,93585.0,93584.0,0.20998632]
[1735721314086,0.0784,93585.0,93584.0,0.21298632]
[1735721314304,0.0784,93585.0,93584.0,0.20698632]
[1735721314748,0.0784,93585.0,93584.0,0.21198632]
[1735721315413,0.0784852,93585.0,93584.0,0.21198632]
[1735721315743,0.0784852,93585.0,93584.0,0.20898632]
[1735721315884,0.0784852,93585.0,93584.0,0.21098632]
[1735721317078,0.0784852,93585.0,93584.0,0.22508495]
[1735721317322,8.52e-05,93585.0,93584.0,0.23408495]
[1735721318920,8.52e-05,93585.0,93584.0,0.21298632]
[1735721323050,0.00730463,93585.0,93584.0,0.21298632]
[1735721329275,0.15730463,93585.0,93584.0,0.21298632]
[1735721331748,0.15730463,93585.0,93584.0,0.20398632]
[1735721331959,0.15730463,93585.0,93584.0,0.20698632]
[1735721333119,0.15730463,93585.0,93584.0,0.21298632]
[1735721333796,0.15730463,93585.0,93584.0,0.23428495]
[1735721334293,0.15730463,93585.0,93584.0,0.21298632]
[1735721335525,0.15730463,93585.0,93584.0,0.009]
[1735721335776,0.54388079,93585.0,93584.0,0.009]
[1735721336022,0.15,93583.0,93568.0,0.00027169]
[1735721336279,0.26498463,93585.0,93568.0,0.00027169]
[1735721336280,0.363746,93569.0,93568.0,0.00027169]
[1735721336544,1.662941,93569.0,93568.0,0.00027169]
[1735721336857,1.769458,93569.0,93568.0,0.00027169]
[1735721336965,1.77670105,93569.0,93568.0,0.00027169]
[1735721337469,1.64470605,93569.0,93568.0,0.00027169]
[1735721337723,1.64470605,93569.0,93568.0,0.00727169]
[1735721337985,1.55520605,93569.0,93568.0,0.00727169]
[1735721338239,1.50387905,93569.0,93568.0,0.00027169]
[1735721338482,1.24880405,93569.0,93568.0,0.00027169]
[1735721338748,0.37098905,93569.0,93568.0,0.00327169]
[1735721339234,0.37098905,93569.0,93568.0,0.00027169]
[1735721339481,0.37398905,93569.0,93568.0,0.00027169]
[1735721339727,0.37498905,93569.0,93568.0,0.00027169]
[1735721339984,0.37698905,93569.0,93568.0,0.00027169]
[1735721340275,0.37198905,93569.0,93568.0,0.00027169]
[1735721340779,0.37398905,93569.0,93568.0,0.00027169]
[1735721341314,0.37298905,93569.0,93568.0,0.00127169]
[1735721341580,0.37298905,93569.0,93568.0,0.28115801]
[1735721341901,0.00924305,93569.0,93568.0,0.28115801]
[1735721342080,0.00924305,93569.0,93568.0,0.20525801]
[1735721342319,0.00924305,93569.0,93568.0,0.20625801]
[1735721342552,0.00724305,93569.0,93568.0,0.20525801]
[1735721342767,0.22098905,93569.0,93568.0,0.20825801]
[1735721342975,0.213746,93569.0,93568.0,0.20825801]
[1735721343247,0.22097071,93569.0,93568.0,0.20525801]
[1735721343457,0.22097071,93569.0,93568.0,0.20425801]
[1735721343675,0.22097071,93569.0,93568.0,0.20825801]
[1735721343884,0.22097071,93569.0,93568.0,0.20425801]
[1735721344166,0.22097071,93569.0,93568.0,0.20925801]
[1735721345188,0.22097071,93569.0,93568.0,0.21125801]
[1735721345402,0.22097071,93569.0,93568.0,0.10625801]
[1735721345813,0.22097071,93569.0,93568.0,0.10725801]
[1735721346028,0.22097071,93569.0,93568.0,0.10825801]
[1735721346233,0.37097071,93569.0,93568.0,0.10825801]
[1735721346442,0.37097071,93569.0,93568.0,0.00427169]
[1735721346649,1.92104371,93569.0,93568.0,0.00327169]
[1735721346864,1.70437771,93569.0,93568.0,0.00327169]
[1735721347078,1.50706971,93569.0,93568.0,0.00327169]
[1735721347289,0.37097071,93569.0,93568.0,0.00327169]
[1735721347773,0.83311071,93569.0,93568.0,0.00327169]
[1735721347992,0.62788971,93569.0,93568.0,0.00427169]
[1735721348225,0.61718471,93569.0,93568.0,0.00427169]
[1735721348451,0.55826671,93569.0,93568.0,0.00327169]
[1735721348629,0.55826671,93569.0,93568.0,0.00027169]
[1735721348816,0.55826671,93569.0,93568.0,0.00227169]
[1735721349429,0.55826671,93569.0,93568.0,0.00527169]
[1735721349644,0.55826671,93569.0,93568.0,0.00327169]
[1735721349890,0.55826671,93569.0,93568.0,0.00027169]
[1735721350093,0.55826671,93569.0,93568.0,0.00327169]
[1735721350265,0.74409088,93569.0,93568.0,0.00327169]
[1735721350465,0.64105191,93569.0,93568.0,0.00027169]
[1735721351090,0.64105191,93569.0,93568.0,0.00227169]
[1735721351509,0.64105191,93569.0,93568.0,0.00027169]
[1735721351717,0.64105191,93569.0,93568.0,0.00327169]
[1735721351932,0.64205191,93569.0,93568.0,0.00327169]
[1735721352160,0.64205191,93569.0,93568.0,0.00027169]
[1735721353031,0.64405191,93569.0,93568.0,0.00027169]
[1735721353475,0.64705191,93569.0,93568.0,0.00027169]
[1735721354587,0.363773,93557.0,93556.0,0.08606315]
[1735721354804,0.37096654,93557.0,93556.0,0.08621314]
[1735721355470,0.66888954,93557.0,93556.0,0.08621314]
[1735721355945,0.55976754,93557.0,93556.0,0.00414999]
[1735721356158,0.55976754,93557.0,93556.0,0.00014999]
[1735721356632,0.55976754,93557.0,93556.0,0.00314999]
[1735721356840,0.55976754,93557.0,93556.0,0.00014999]
[1735721357726,0.52920854,93557.0,93556.0,0.00014999]
[1735721358138,0.52920854,93557.0,93556.0,0.00214999]
[1735721358349,0.37096654,93557.0,93556.0,0.00514999]
[1735721358562,0.55995454,93557.0,93556.0,0.00014999]
[1735721358770,0.37096654,93557.0,93556.0,0.00314999]
[1735721358982,0.54768854,93557.0,93556.0,0.00514999]
[1735721359196,0.68911054,93557.0,93556.0,0.00214999]
[1735721359399,0.66066254,93557.0,93556.0,0.00614999]
[1735721359612,0.64461054,93557.0,93556.0,0.00614999]
[1735721359822,0.37096654,93557.0,93556.0,0.00614999]
[1735721360038,0.37096654,93557.0,93556.0,0.00414999]
[1735721361460,0.37096654,93557.0,93556.0,0.00614999]
[1735721362336,0.37096654,93557.0,93556.0,0.00623519]
[1735721362543,0.37113694,93557.0,93556.0,0.00623519]
[1735721363388,0.42962673,93557.0,93556.0,0.00623519]
[1735721363605,0.58199073,93557.0,93556.0,0.00623519]
[1735721363818,0.42962673,93557.0,93556.0,0.00623519]
[1735721364002,0.37113694,93557.0,93556.0,0.00623519]
[1735721364221,0.52260094,93557.0,93556.0,0.00623519]
[1735721366770,0.52260094,93557.0,93556.0,0.00223519]
[1735721366975,0.51217994,93557.0,93556.0,0.00623519]
[1735721367410,0.37113694,93557.0,93556.0,0.00423519]
[1735721368238,0.37113694,93557.0,93556.0,0.00623519]
[1735721368884,0.37113694,93557.0,93556.0,0.00223519]
[1735721369020,0.37113694,93557.0,93556.0,0.00423519]
[1735721369237,0.37113694,93557.0,93556.0,0.00623519]
[1735721369891,0.37113694,93557.0,93556.0,0.00223519]
[1735721370261,0.37113694,93557.0,93556.0,0.00623519]
[1735721370463,0.37113694,93557.0,93556.0,0.00223519]
[1735721370664,0.37113694,93557.0,93556.0,0.00023519]
[1735721370865,0.37113694,93557.0,93556.0,0.00423519]
[1735721371068,0.37113694,93557.0,93556.0,0.00623519]
[1735721371470,0.37113694,93557.0,93556.0,0.00423519]
[1735721371676,0.37113694,93557.0,93553.0,0.16566315]
[1735721371677,0.15,93556.0,93553.0,0.16216037]
[1735721371878,0.15,93554.0,93553.0,0.1623105]
[1735721372221,0.15716152,93554.0,93553.0,0.1623105]
[1735721373568,0.15716152,93554.0,93553.0,0.1663105]
[1735721373788,0.15716152,93554.0,93553.0,0.1643105]
[1735721373996,0.00716152,93554.0,93553.0,0.26829682]
[1735721374211,0.00716152,93554.0,93553.0,0.27329682]
[1735721374435,0.15,93554.0,93553.0,0.27329682]
[1735721374619,0.15716097,93554.0,93553.0,0.27329682]
[1735721374958,0.15716097,93554.0,93553.0,0.27129682]
[1735721375132,0.21564881,93554.0,93553.0,0.19469682]
[1735721375563,0.15716097,93554.0,93553.0,0.19469682]
[1735721376206,0.15716097,93554.0,93553.0,0.19478202]
[1735721396844,0.213775,93556.0,93553.0,0.19478202]
[1735721397049,0.00595418,93554.0,93553.0,0.0907957]
[1735721397262,0.00595415,93554.0,93553.0,0.19478202]
[1735721397468,0.213775,93556.0,93553.0,0.19478202]
[1735721397605,0.21973115,93555.0,93554.0,0.10398632]
[1735721399465,0.21973115,93555.0,93554.0,0.10598632]
[1735721399905,0.21973115,93555.0,93554.0,0.10998632]
[1735721400403,0.21973115,93555.0,93554.0,0.19254669]
[1735721401437,0.21973115,93555.0,93554.0,0.19054669]
[1735721401839,0.21973115,93555.0,93554.0,0.19254669]
[1735721402040,0.21973115,93555.0,93554.0,0.18854669]
[1735721402245,0.21973115,93555.0,93554.0,0.19454669]
[1735721402658,0.21973115,93555.0,93554.0,0.19054669]
[1735721402866,0.21973115,93555.0,93554.0,0.19954669]
[1735721403063,0.00595415,93555.0,93554.0,0.30472489]
[1735721403341,0.0001704,93557.0,93556.0,0.08256037]
[1735721403539,0.0001704,93557.0,93556.0,0.26304669]
[1735721404150,0.0001704,93557.0,93556.0,0.33284669]
[1735721404373,0.0001704,93557.0,93556.0,0.38072271]
[1735721404510,0.0001704,93557.0,93556.0,0.39820832]
[1735721404713,0.08671429,93570.0,93557.0,0.0765]
[1735721404922,0.08671429,93570.0,93559.0,0.0765]
[1735721405148,0.08671429,93570.0,93561.0,0.0765]
[1735721405355,0.08671429,93570.0,93569.0,0.08256037]
[1735721405564,0.213741,93571.0,93570.0,0.08256037]
[1735721405787,0.213741,93571.0,93570.0,0.18654669]
[1735721405985,0.21970982,93571.0,93570.0,0.18654669]
[1735721406736,0.21970982,93571.0,93570.0,0.20610136]
[1735721407100,0.00596882,93571.0,93570.0,0.20610136]
[1735721407301,0.213736,93573.0,93572.0,0.08256037]
[1735721407513,0.21970482,93573.0,93572.0,0.26304669]
[1735721408329,0.00596882,93573.0,93572.0,0.33284669]
[1735721408528,0.00596882,93573.0,93572.0,0.37898683]
[1735721408724,0.08671429,93590.0,93573.0,0.023]
[1735721408951,0.08671429,93590.0,93584.0,0.08256037]
[1735721409155,0.08671429,93590.0,93584.0,0.18654669]
[1735721409383,0.08671429,93590.0,93584.0,0.26304669]
[1735721409597,0.08671429,93590.0,93584.0,0.28935136]
[1735721410266,0.0001493,93585.0,93584.0,0.28935136]
[1735721410469,0.0001493,93585.0,93584.0,0.29235136]
[1735721411096,0.0001493,93585.0,93584.0,0.26604669]
[1735721411797,0.00613971,93585.0,93584.0,0.26704669]
[1735721412011,0.19475183,93592.0,93591.0,0.08256037]
[1735721412216,0.19475183,93592.0,93591.0,0.18654669]
[1735721413256,0.20074224,93592.0,93591.0,0.18654669]
[1735721413713,0.20074224,93592.0,93591.0,0.21285136]
[1735721415777,0.20074224,93592.0,93591.0,0.21885136]
[1735721416189,0.20074224,93592.0,93591.0,0.22185136]
[1735721416590,0.20074224,93592.0,93591.0,0.21285136]
[1735721416971,0.20074224,93592.0,93591.0,0.22485136]
[1735721417128,0.20074224,93592.0,93591.0,0.21685136]
[1735721417732,0.20074224,93592.0,93591.0,0.19054669]
[1735721418578,0.20074224,93592.0,93591.0,0.19954669]
[1735721419242,0.20074224,93592.0,93591.0,0.19554669]
[1735721419984,0.20074224,93592.0,93591.0,0.20054669]
[1735721420539,0.20074224,93592.0,93591.0,0.014]
[1735721420741,0.23214007,93592.0,93591.0,0.014]
[1735721421155,0.20074224,93592.0,93591.0,0.014]
[1735721421563,0.20074224,93592.0,93591.0,0.009]
[1735721421767,0.20074224,93592.0,93591.0,0.19870273]
[1735721421975,0.20074224,93592.0,93591.0,0.18954669]
[1735721422179,0.20074224,93592.0,93591.0,0.19554669]
[1735721422389,0.20074224,93592.0,93591.0,0.18654669]
[1735721422597,0.20074224,93592.0,93591.0,0.18854669]
[1735721422805,0.20074224,93592.0,93591.0,0.19354669]
[1735721423011,0.20074224,93592.0,93591.0,0.18871709]
[1735721423220,0.20074224,93592.0,93591.0,0.18671709]
[1735721423451,0.20074224,93592.0,93591.0,0.19471709]
[1735721423674,0.20074224,93592.0,93591.0,0.19871709]
[1735721423882,0.20082744,93592.0,93591.0,0.19871709]
[1735721424712,0.20082744,93592.0,93591.0,0.2145888]
[1735721424916,0.20082744,93592.0,93591.0,0.18671709]
[1735721425124,0.20082744,93592.0,93591.0,0.19071709]
[1735721425331,0.20082744,93592.0,93591.0,0.19871709]
[1735721425532,0.20082744,93592.0,93591.0,0.19471709]
[1735721426070,0.20082744,93592.0,93591.0,0.19871709]
[1735721426500,0.20082744,93592.0,93591.0,0.28001709]
[1735721426735,0.00607561,93592.0,93591.0,0.2998888]
[1735721427155,8.52e-05,93592.0,93591.0,0.2998888]
[1735721427853,0.00614359,93592.0,93591.0,0.2998888]
[1735721428063,8.52e-05,93592.0,93591.0,0.2998888]
[1735721428204,0.00614359,93592.0,93591.0,0.2998888]
[1735721428405,8.52e-05,93592.0,93591.0,0.2998888]
[1735721428623,0.00614359,93592.0,93591.0,0.2998888]
[1735721428823,8.52e-05,93592.0,93591.0,0.3228888]
[1735721429635,8.52e-05,93592.0,93591.0,0.3188888]
[1735721430971,8.52e-05,93592.0,93591.0,0.3138888]
[1735721431368,8.52e-05,93592.0,93591.0,0.3108888]
[1735721431574,8.52e-05,93592.0,93591.0,0.3198888]
[1735721431785,8.52e-05,93592.0,93591.0,0.3178888]
[1735721431991,8.52e-05,93592.0,93591.0,0.3268888]
[1735721434133,8.52e-05,93592.0,93591.0,0.4268888]
[1735721434938,8.52e-05,93592.0,93591.0,0.44433519]
[1735721435362,8.52e-05,93592.0,93591.0,0.42833519]
[1735721435809,8.52e-05,93592.0,93591.0,0.58963519]
[1735721436040,8.52e-05,93592.0,93591.0,0.58063519]
[1735721436723,8.52e-05,93592.0,93591.0,0.58963519]
[1735721437200,8.52e-05,93592.0,93591.0,0.58263519]
[1735721437627,8.52e-05,93592.0,93591.0,0.73263519]
[1735721437839,8.52e-05,93592.0,93591.0,0.74163519]
[1735721438284,8.52e-05,93592.0,93591.0,0.73263519]
[1735721438464,8.52e-05,93592.0,93591.0,0.72363519]
[1735721438671,8.52e-05,93592.0,93591.0,0.73263519]
[1735721438871,8.52e-05,93592.0,93591.0,1.08650304]
[1735721439075,8.53e-05,93601.0,93600.0,0.62443537]
[1735721439288,8.53e-05,93601.0,93600.0,0.83523313]
[1735721439928,8.53e-05,93601.0,93600.0,0.85267952]
[1735721441301,8.53e-05,93601.0,93600.0,0.86167952]
[1735721441993,8.53e-05,93601.0,93600.0,0.87067952]
[1735721442847,8.53e-05,93601.0,93600.0,0.96652663]
[1735721443883,8.53e-05,93601.0,93600.0,0.94908024]
[1735721444115,8.53e-05,93601.0,93600.0,0.96649234]
[1735721444917,8.53e-05,93601.0,93600.0,0.87064523]
[1735721446365,8.53e-05,93601.0,93600.0,1.22461942]
[1735721446938,8.53e-05,93601.0,93600.0,1.22889942]
[1735721447493,8.53e-05,93601.0,93600.0,1.37272275]
[1735721448319,8.53e-05,93601.0,93600.0,1.22889942]
[1735721450253,8.53e-05,93601.0,93600.0,1.42103001]
[1735721453346,8.53e-05,93601.0,93600.0,1.40361791]
[1735721453573,8.53e-05,93601.0,93600.0,1.42102946]
[1735721454801,0.0001706,93606.0,93605.0,0.28256037]
[1735721455105,0.0001706,93606.0,93605.0,0.51353301]
[1735721455319,0.0001706,93606.0,93605.0,0.80779601]
[1735721455530,0.0001706,93606.0,93605.0,0.82520756]
[1735721456445,0.0001706,93606.0,93605.0,0.84320756]
[1735721456662,0.0001706,93606.0,93605.0,0.83420756]
[1735721456875,0.0001706,93606.0,93605.0,0.87140756]
[1735721457114,0.0001706,93606.0,93605.0,0.88940756]
[1735721457572,0.0001706,93606.0,93605.0,1.23464109]
[1735721458015,0.0001706,93606.0,93605.0,1.24364109]
[1735721458434,0.0001706,93606.0,93605.0,1.23464109]
[1735721458635,0.0001706,93606.0,93605.0,1.47452646]
[1735721458842,0.0001706,93606.0,93605.0,1.48352646]
[1735721458991,0.0001706,93606.0,93605.0,1.47452646]
[1735721459400,0.0001706,93606.0,93605.0,1.48352646]
[1735721459597,0.0001706,93606.0,93605.0,1.47452646]
[1735721459804,0.0001706,93606.0,93605.0,1.23464109]
[1735721459999,0.0001706,93606.0,93605.0,1.24364109]
[1735721460391,0.0001706,93606.0,93605.0,1.23464109]
[1735721460821,0.0001706,93606.0,93605.0,1.24364109]
[1735721463645,0.0001706,93606.0,93605.0,1.43552522]
[1735721464787,0.0001706,93606.0,93605.0,1.24364109]
[1735721464992,0.0001706,93606.0,93605.0,0.88985477]
[1735721465131,0.0001706,93606.0,93605.0,0.98985477]
[1735721465335,0.0001706,93606.0,93605.0,0.88985477]
[1735721465549,0.0001706,93606.0,93605.0,1.01285477]
[1735721465751,0.0001706,93606.0,93605.0,1.10784109]
[1735721465970,0.0001706,93606.0,93605.0,0.76060756]
[1735721466143,0.0001706,93606.0,93605.0,0.75160756]
[1735721466345,0.0001706,93606.0,93605.0,0.76060756]
[1735721466595,0.0001706,93606.0,93605.0,0.73619601]
[1735721466808,0.0001706,93606.0,93605.0,0.74319601]
[1735721467395,0.0001706,93606.0,93605.0,0.73619601]
[1735721467839,0.0001706,93606.0,93605.0,0.72719601]
[1735721467995,0.0001706,93606.0,93605.0,0.73619601]
[1735721468610,0.0001706,93606.0,93605.0,0.74519601]
[1735721468807,0.0001706,93606.0,93605.0,0.82399601]
[1735721469030,0.0001706,93606.0,93605.0,0.87349601]
[1735721469554,0.0001706,93606.0,93605.0,0.89095957]
[1735721470406,0.0001706,93606.0,93605.0,0.93090158]
[1735721470605,0.0001706,93606.0,93605.0,0.91343802]
[1735721471257,0.0001706,93606.0,93605.0,1.12406612]
[1735721474270,0.0001706,93606.0,93605.0,1.36395149]
[1735721475098,0.0001706,93606.0,93605.0,1.12406612]
[1735721475301,0.0001706,93606.0,93605.0,1.07456612]
[1735721475758,0.0001706,93606.0,93605.0,0.99576612]
[1735721476041,0.0001706,93606.0,93605.0,1.23565149]
[1735721476861,0.0001706,93606.0,93605.0,0.99576612]
[1735721479518,0.15,93635.0,93627.0,0.08256037]
[1735721479727,0.213609,93629.0,93628.0,0.10398632]
[1735721480172,0.21980933,93629.0,93628.0,0.10398632]
[1735721480690,0.21980933,93629.0,93628.0,0.18654669]
[1735721481528,0.21980933,93629.0,93628.0,0.19554669]
[1735721482621,0.34580933,93629.0,93628.0,0.20054669]
[1735721483314,0.34589453,93629.0,93628.0,0.20054669]
[1735721493124,0.00628553,93629.0,93628.0,0.23022823]